bitfinex-derivatives/quotes_BTCF0:USTF0_20250308
["timestamp","ask_amount","ask_price","bid_price","bid_amount"]
[1741398959477,0.1968,85964.0,85962.0,0.19389968]
[1741398959871,0.1988,85963.0,85962.0,0.19389968]
[1741398960183,0.1988,85963.0,85962.0,0.21553203]
[1741398960381,0.1988,85963.0,85962.0,0.23081653]
[1741398960981,0.3151616,85963.0,85962.0,0.02383761]
[1741398961178,0.1988,85963.0,85962.0,0.02383761]
[1741398961381,0.1988,85963.0,85962.0,0.04669649]
[1741398961981,0.1988,85963.0,85961.0,0.02331981]
[1741398962177,0.1988,85963.0,85962.0,0.2003]
[1741398962673,0.1988,85963.0,85961.0,0.03194114]
[1741398963377,0.116363,85962.0,85961.0,0.01036617]
[1741398963675,0.116363,85962.0,85961.0,0.00174484]
[1741398963884,0.313463,85962.0,85961.0,0.00174484]
[1741398964284,0.313463,85962.0,85961.0,0.00274484]
[1741398964881,0.313463,85962.0,85961.0,0.00174484]
[1741398965189,0.313463,85962.0,85951.0,0.01748]
[1741398965190,0.1163693,85958.0,85951.0,0.01748]
[1741398965373,0.1964,85957.0,85951.0,0.21448]
[1741398965574,0.1163746,85954.0,85951.0,0.21448]
[1741398965772,0.1964,85953.0,85951.0,0.21448]
[1741398965975,0.09136,85952.0,85951.0,0.21448]
[1741398967584,0.1964,85953.0,85952.0,0.1163765]
[1741398967784,0.1964,85953.0,85952.0,0.3263765]
[1741398968082,0.1964,85953.0,85952.0,0.4133]
[1741398969689,0.1964,85953.0,85952.0,0.4143]
[1741398970289,0.1964,85953.0,85952.0,0.4229683]
[1741398970290,0.3127752,85953.0,85952.0,0.4229683]
[1741398970490,0.3127752,85953.0,85952.0,0.001]
[1741398970989,0.6735752,85953.0,85952.0,0.001]
[1741398971181,0.116386,85945.0,85944.0,0.15305719]
[1741398971383,0.5572,85953.0,85944.0,0.15305719]
[1741398971581,0.4773078,85945.0,85944.0,0.15305719]
[1741398971795,0.1165078,85945.0,85944.0,0.15305719]
[1741398972094,0.0001218,85945.0,85944.0,0.17443676]
[1741398972286,0.0001218,85945.0,85944.0,0.38206335]
[1741398973090,0.3203078,85945.0,85944.0,0.02137957]
[1741398973294,0.1163874,85944.0,85943.0,0.00017451]
[1741398973495,0.3137874,85944.0,85943.0,0.00017451]
[1741398973794,0.7342874,85944.0,85943.0,0.00017451]
[1741398973989,0.6179,85944.0,85943.0,0.01397171]
[1741398974201,0.6179,85944.0,85934.0,0.1987]
[1741398974202,0.7342874,85944.0,85935.0,0.01748]
[1741398974381,0.7342874,85944.0,85935.0,0.22148]
[1741398974581,0.0581943,85943.0,85935.0,0.22148]
[1741398974792,0.6179,85944.0,85937.0,0.116396]
[1741398975003,0.2048,85942.0,85936.0,0.13255664]
[1741398975186,0.1163934,85940.0,85936.0,0.13255664]
[1741398975500,0.2048,85939.0,85937.0,0.2016]
[1741398975695,0.2167,85944.0,85939.0,0.1163935]
[1741398975898,0.1163906,85942.0,85940.0,0.2016]
[1741398976091,0.1163914,85941.0,85940.0,0.2016]
[1741398976286,0.3202914,85941.0,85940.0,0.2016]
[1741398976486,0.3202914,85941.0,85940.0,0.21908]
[1741398977194,0.3202914,85941.0,85940.0,0.16105719]
[1741398977793,0.4206,85941.0,85935.0,0.02153687]
[1741398977991,0.4206,85941.0,85931.0,0.01757366]
[1741398977992,0.1164009,85934.0,85931.0,0.01757366]
[1741398978191,0.09132,85934.0,85931.0,0.03855136]
[1741398978390,0.09132,85934.0,85932.0,0.2088]
[1741398978791,0.29262,85934.0,85931.0,0.03855136]
[1741398978987,0.29262,85934.0,85931.0,0.24735136]
[1741398979202,0.6124209,85934.0,85931.0,0.24735136]
[1741398980087,0.49602,85934.0,85931.0,0.24735136]
[1741398980287,0.49602,85934.0,85931.0,0.19107385]
[1741398980594,0.1164023,85933.0,85932.0,0.2055]
[1741398980788,0.4047,85934.0,85932.0,0.2055]
[1741398980995,0.3976,85933.0,85932.0,0.2055]
[1741398982104,0.3976,85933.0,85932.0,0.5663]
[1741398982403,0.5140023,85933.0,85932.0,0.5663]
[1741398983395,0.3976,85933.0,85932.0,0.50827719]
[1741398983601,0.3976,85933.0,85932.0,0.70227719]
[1741398984002,0.5140023,85933.0,85932.0,0.50827719]
[1741398984501,0.3976,85933.0,85932.0,0.50827719]
[1741398984702,0.3976,85933.0,85932.0,0.70227719]
[1741398986101,0.3976,85933.0,85932.0,0.71600998]
[1741398986304,0.1963,85933.0,85932.0,0.76065798]
[1741398986602,0.1951,85939.0,85936.0,0.116397]
[1741398986798,0.1951,85939.0,85937.0,0.2063]
[1741398986996,0.21248785,85941.0,85940.0,0.1163928]
[1741398987397,0.21248785,85941.0,85940.0,0.13017994]
[1741398987795,0.21248785,85941.0,85940.0,0.01378714]
[1741398988204,0.21248785,85941.0,85940.0,0.13017994]
[1741398988797,0.21248785,85941.0,85940.0,0.01378714]
[1741398988997,0.1165083,85945.0,85940.0,0.01378714]
[1741398989297,0.1942,85944.0,85941.0,0.27845573]
[1741398989503,0.389,85944.0,85941.0,0.26466859]
[1741398989703,0.389,85944.0,85942.0,0.1963]
[1741398990493,0.389,85944.0,85932.0,0.57416586]
[1741398990806,0.418998,85938.0,85931.0,0.06489904]
[1741398991101,0.1164036,85932.0,85931.0,0.06489904]
[1741398991312,0.09128,85932.0,85931.0,0.06489904]
[1741398991601,0.09128,85932.0,85931.0,0.2266774]
[1741398992197,0.09128,85932.0,85931.0,0.27019904]
[1741398992403,0.09128,85932.0,85931.0,0.22594625]
[1741398992601,0.09128,85932.0,85931.0,0.43514625]
[1741398993002,0.09128,85932.0,85931.0,0.4439534]
[1741398994906,0.09128,85932.0,85931.0,0.8047534]
[1741398995105,0.3854,85937.0,85931.0,0.82618638]
[1741398995297,0.3854,85937.0,85932.0,0.01377002]
[1741398995504,0.3854,85937.0,85931.0,0.76968357]
[1741398995702,0.3854,85937.0,85931.0,0.76816357]
[1741398996404,0.3854,85937.0,85932.0,0.01748]
[1741398996800,0.3854,85937.0,85933.0,0.2056]
[1741398998504,0.3854,85937.0,85934.0,0.04352164]
[1741398998805,0.3854,85937.0,85934.0,0.25212164]
[1741398999798,0.3854,85937.0,85934.0,0.2086]
[1741399000904,0.1901,85937.0,85934.0,0.2086]
[1741399001498,0.3933,85937.0,85934.0,0.15057719]
[1741399001706,0.3933,85937.0,85935.0,0.1975]
[1741399004711,0.3933,85937.0,85935.0,0.13947719]
[1741399005610,0.3933,85937.0,85934.0,0.1952]
[1741399006005,0.3933,85937.0,85933.0,0.2062]
[1741399006397,0.3933,85937.0,85934.0,0.2064]
[1741399007611,0.3933,85937.0,85934.0,0.14837719]
[1741399007814,0.3933,85937.0,85934.0,0.35767719]
[1741399008507,0.5096972,85937.0,85934.0,0.35767719]
[1741399009906,0.5096972,85937.0,85934.0,0.14837719]
[1741399010212,0.1164023,85933.0,85932.0,0.01748]
[1741399010508,0.1164023,85933.0,85931.0,0.34169017]
[1741399010708,0.5179036,85932.0,85931.0,0.02143298]
[1741399010908,0.4015,85932.0,85930.0,0.00017451]
[1741399011110,0.116405,85931.0,85930.0,0.00017451]
[1741399011611,0.522805,85931.0,85930.0,0.00017451]
[1741399011812,0.522805,85931.0,85930.0,0.04654112]
[1741399012402,0.522805,85931.0,85930.0,0.07323726]
[1741399012818,0.522805,85931.0,85930.0,0.02687065]
[1741399013113,0.522805,85931.0,85930.0,0.07323726]
[1741399013716,0.4064,85931.0,85925.0,0.2072]
[1741399013920,0.1164114,85927.0,85925.0,0.2072]
[1741399014108,0.5261117,85926.0,85925.0,0.0263453]
[1741399014306,0.5261117,85926.0,85924.0,0.3608]
[1741399014307,0.1164131,85925.0,85924.0,0.3608]
[1741399014609,0.4097,85926.0,85924.0,0.3608]
[1741399014810,0.399,85925.0,85924.0,0.7551]
[1741399015008,0.3608,85950.0,85924.0,0.78230646]
[1741399015207,0.2044,85930.0,85925.0,0.13488757]
[1741399015518,0.1164109,85927.0,85924.0,0.38800646]
[1741399015708,0.399,85926.0,85924.0,0.38800646]
[1741399016106,0.399,85926.0,85925.0,0.01748]
[1741399016307,0.399,85926.0,85924.0,0.38800646]
[1741399016621,0.399,85926.0,85924.0,0.36494365]
[1741399017910,0.399,85926.0,85925.0,0.3929]
[1741399019611,0.399,85926.0,85925.0,0.2006]
[1741399019815,0.399,85926.0,85924.0,0.36494365]
[1741399020322,0.399,85926.0,85924.0,0.48135755]
[1741399020611,0.00017451,85934.0,85929.0,0.1164067]
[1741399020812,0.4022,85933.0,85930.0,0.1976]
[1741399021010,0.5186034,85933.0,85930.0,0.1976]
[1741399021207,0.1164037,85932.0,85930.0,0.1976]
[1741399021409,0.4022,85933.0,85927.0,0.1164098]
[1741399021617,0.4022,85933.0,85931.0,0.3608]
[1741399022404,0.4022,85933.0,85932.0,0.1976]
[1741399022709,0.4022,85933.0,85932.0,0.13957719]
[1741399022910,0.4022,85933.0,85932.0,0.33857719]
[1741399023422,0.4022,85933.0,85932.0,0.53787719]
[1741399023810,0.4022,85933.0,85932.0,0.65428079]
[1741399024210,0.4022,85933.0,85932.0,0.53787719]
[1741399024906,0.00017451,85938.0,85936.0,0.1163979]
[1741399025223,0.00017451,85938.0,85937.0,0.2079]
[1741399025721,0.00017451,85938.0,85932.0,0.56162]
[1741399025722,0.00017451,85938.0,85932.0,0.50359719]
[1741399025930,0.00017451,85938.0,85937.0,0.0455919]
[1741399026822,0.4204,85940.0,85937.0,0.0455919]
[1741399027016,0.4204,85940.0,85939.0,0.3608]
[1741399027227,0.09108,85945.0,85939.0,0.3608]
[1741399027415,0.2027,85944.0,85943.0,0.1163887]
[1741399027807,0.4025,85944.0,85943.0,0.1163887]
[1741399028214,0.40261843,85944.0,85943.0,0.1163887]
[1741399028818,0.40261843,85944.0,85943.0,0.05836589]
[1741399029921,0.40261843,85944.0,85943.0,0.22730984]
[1741399030923,0.00011843,85944.0,85943.0,0.22730984]
[1741399031920,0.00011843,85944.0,85943.0,0.12335205]
[1741399032322,0.00011843,85944.0,85942.0,0.1749078]
[1741399032719,0.00011843,85944.0,85943.0,0.1163887]
[1741399033026,0.00011843,85944.0,85943.0,0.28787869]
[1741399033225,0.2037,85950.0,85943.0,0.17148999]
[1741399033424,0.3608,85946.0,85943.0,0.0455919]
[1741399033615,0.1163874,85944.0,85943.0,0.0455919]
[1741399033817,0.49564,85945.0,85935.0,0.00017451]
[1741399034012,0.1163982,85936.0,85935.0,0.00017451]
[1741399034524,0.00014278,85936.0,85935.0,0.00017451]
[1741399034927,0.00014278,85936.0,85926.0,0.116411]
[1741399034928,0.40474278,85936.0,85928.0,0.1164079]
[1741399035128,0.40474278,85936.0,85930.0,0.3608]
[1741399035521,0.40474278,85936.0,85931.0,0.12984048]
[1741399035717,0.40474278,85936.0,85931.0,0.29183678]
[1741399036024,0.40474278,85936.0,85932.0,0.01748]
[1741399036227,0.40474278,85936.0,85931.0,0.17543238]
[1741399036527,0.40474278,85936.0,85932.0,0.01748]
[1741399037034,0.40474278,85936.0,85934.0,0.1163998]
[1741399037218,0.40474278,85936.0,85935.0,0.2094]
[1741399037929,0.40474278,85936.0,85935.0,0.26777679]
[1741399038140,0.40474278,85936.0,85935.0,0.15137719]
[1741399039322,0.1164023,85933.0,85932.0,0.01748]
[1741399040325,0.5168023,85933.0,85932.0,0.01748]
[1741399040923,0.4004,85933.0,85923.0,0.00431816]
[1741399041119,0.1164145,85924.0,85923.0,0.00431816]
[1741399042025,0.5086145,85924.0,85923.0,0.03030939]
[1741399044031,0.1164158,85923.0,85922.0,0.33308658]
[1741399044429,0.5246158,85923.0,85922.0,0.33308658]
[1741399045927,0.1164225,85919.0,85917.0,0.01748]
[1741399046119,0.392,85918.0,85917.0,0.01748]
[1741399047121,0.392,85918.0,85916.0,0.01748]
[1741399047423,0.5084226,85918.0,85916.0,0.01748]
[1741399047626,0.392,85918.0,85916.0,0.01748]
[1741399048021,0.1164239,85917.0,85916.0,0.01748]
[1741399048532,0.5286239,85917.0,85916.0,0.01748]
[1741399048929,0.5286239,85917.0,85916.0,0.0630719]
[1741399048930,0.46315606,85917.0,85916.0,0.0630719]
[1741399049822,0.46315606,85917.0,85916.0,0.01748]
[1741399050032,0.4122,85917.0,85909.0,0.18717392]
[1741399050218,0.1164298,85913.0,85909.0,0.18717392]
[1741399050421,0.0582143,85914.0,85908.0,0.00029627]
[1741399050422,0.4122,85912.0,85908.0,0.00029627]
[1741399050822,0.1164322,85911.0,85908.0,0.00029627]
[1741399051023,0.1164322,85911.0,85908.0,0.02643262]
[1741399051329,0.5262341,85910.0,85908.0,0.02643262]
[1741399051524,0.1164348,85909.0,85908.0,0.02643262]
[1741399051928,0.5241348,85909.0,85908.0,0.02643262]
[1741399052520,0.8849348,85909.0,85908.0,0.02643262]
[1741399053230,0.1164416,85904.0,85903.0,0.00336981]
[1741399053718,0.1164416,85904.0,85903.0,0.02940903]
[1741399054330,0.7175416,85904.0,85903.0,0.02940903]
[1741399055025,0.7175416,85904.0,85903.0,0.02603922]
[1741399055226,0.1164456,85901.0,85900.0,0.1]
[1741399056230,0.1164456,85901.0,85900.0,0.04197719]
[1741399056430,0.1164456,85901.0,85900.0,0.05945719]
[1741399057133,0.1164456,85901.0,85900.0,0.08657053]
[1741399059335,0.1164456,85901.0,85900.0,0.02854772]
[1741399060736,0.1164456,85901.0,85900.0,0.0372958]
[1741399062241,0.6011,85904.0,85899.0,0.01748]
[1741399062439,0.4015,85900.0,85899.0,0.04390814]
[1741399062831,0.517947,85900.0,85899.0,0.04390814]
[1741399064140,0.4015,85900.0,85899.0,0.04390814]
[1741399065244,0.4015,85900.0,85899.0,0.01373587]
[1741399065438,0.517947,85900.0,85899.0,0.01373587]
[1741399066745,0.11643,85913.0,85901.0,0.1164445]
[1741399066944,0.3608,85925.0,85908.0,0.3608]
[1741399067140,0.09084,85925.0,85917.0,0.3608]
[1741399067340,0.116419,85921.0,85918.0,0.21728165]
[1741399067540,0.09084,85925.0,85919.0,0.01378165]
[1741399067847,0.09084,85925.0,85920.0,0.01378165]
[1741399068043,0.21248785,85935.0,85921.0,0.01378165]
[1741399068242,0.00017461,85931.0,85929.0,0.30277719]
[1741399068441,0.00017461,85931.0,85930.0,0.01378165]
[1741399068640,0.00017461,85931.0,85930.0,0.13018795]
[1741399068841,3.183e-05,85931.0,85930.0,0.13018795]
[1741399069347,0.10198752,85942.0,85930.0,0.01378165]
[1741399069538,0.10198752,85942.0,85941.0,0.3608]
[1741399069848,0.03128079,85942.0,85941.0,0.49107959]
[1741399070046,0.03128079,85942.0,85941.0,0.63079705]
[1741399070047,0.00167674,85942.0,85941.0,0.63079705]
[1741399070553,0.07495685,85953.0,85942.0,0.01748]
[1741399070746,0.07495685,85953.0,85952.0,0.4771765]
[1741399071046,0.3608,85978.0,85952.0,0.4771765]
[1741399071047,0.18088584,85960.0,85959.0,0.1163671]
[1741399071251,0.11773539,85971.0,85970.0,0.1163522]
[1741399071450,0.09448544,85971.0,85970.0,0.01403826]
[1741399071745,0.09448544,85971.0,85968.0,0.00010332]
[1741399072047,0.4126,85970.0,85968.0,0.00010332]
[1741399073439,0.2025,85970.0,85969.0,0.4771535]
[1741399073645,0.09448544,85971.0,85970.0,0.1163522]
[1741399073952,0.09448544,85971.0,85970.0,0.3216522]
[1741399074142,0.09448544,85971.0,85970.0,0.2053]
[1741399074341,0.00011281,85971.0,85970.0,0.16988057]
[1741399074650,0.00011281,85971.0,85970.0,0.28623277]
[1741399075351,0.00011281,85971.0,85970.0,0.14727719]
[1741399075841,0.00011281,85971.0,85970.0,0.26362939]
[1741399076044,0.00011281,85971.0,85970.0,0.28110939]
[1741399076245,0.00011281,85971.0,85970.0,0.26362939]
[1741399076448,0.00011281,85971.0,85970.0,0.28110939]
[1741399076848,0.00011281,85971.0,85970.0,0.48560939]
[1741399077445,0.00011281,85971.0,85970.0,0.63995187]
[1741399077950,0.00011281,85971.0,85970.0,0.77414397]
[1741399078153,0.00017451,85979.0,85970.0,0.65779177]
[1741399078351,0.00017451,85979.0,85978.0,0.4771413]
[1741399078558,0.05052206,86000.0,85999.0,0.1163129]
[1741399078856,0.01604837,86000.0,85999.0,0.1163129]
[1741399079243,0.01614554,86000.0,85999.0,0.1163129]
[1741399079451,0.01614554,86000.0,85999.0,0.0327499]
[1741399079752,0.01614554,86000.0,85998.0,0.1997]
[1741399079753,0.01614554,86000.0,85998.0,0.3160141]
[1741399080557,0.01614554,86000.0,85998.0,0.14167719]
[1741399080746,0.1954,85999.0,85998.0,0.17544658]
[1741399080947,0.1954,85999.0,85998.0,0.29176088]
[1741399082245,0.1984,85999.0,85998.0,0.29176088]
[1741399082551,0.1984,85999.0,85998.0,0.17544658]
[1741399082755,0.406,85999.0,85998.0,0.17544658]
[1741399082945,0.406,85999.0,85998.0,0.03376939]
[1741399083256,0.1163167,85997.0,85991.0,0.36097451]
[1741399083458,0.4011,85996.0,85991.0,0.3029517]
[1741399083845,0.4011,85996.0,85992.0,0.1163216]
[1741399084046,0.4011,85996.0,85995.0,0.1163183]
[1741399084250,0.1935,85996.0,85995.0,0.14944612]
[1741399084856,0.1935,85996.0,85995.0,0.03312782]
[1741399085160,0.309817,85996.0,85991.0,0.3029517]
[1741399085347,0.1935,85996.0,85991.0,0.3029517]
[1741399085553,0.1955,85996.0,85992.0,0.34015912]
[1741399085753,0.1955,85996.0,85994.0,0.1163188]
[1741399085951,0.1955,85996.0,85995.0,0.2099]
[1741399086351,0.1935,85996.0,85995.0,0.2099]
[1741399086559,0.1935,85996.0,85995.0,0.15187719]
[1741399087651,0.1935,85996.0,85995.0,0.26819549]
[1741399087851,0.1935,85996.0,85995.0,0.15187719]
[1741399088054,0.1955,85996.0,85995.0,0.15187719]
[1741399088360,0.1955,85996.0,85995.0,0.26819549]
[1741399089558,0.1955,85996.0,85992.0,0.03277921]
[1741399089860,0.09047541,85996.0,85994.0,0.1163193]
[1741399090050,0.09047541,85996.0,85995.0,0.3129183]
[1741399090964,0.08947541,85996.0,85995.0,0.3129183]
[1741399092058,0.08847541,85996.0,85995.0,0.3129183]
[1741399092251,0.09047541,85996.0,85995.0,0.3129183]
[1741399092451,0.09047541,85996.0,85992.0,0.03313446]
[1741399092659,0.09047541,85996.0,85990.0,0.4771245]
[1741399092860,0.09047541,85996.0,85990.0,0.39368878]
[1741399093062,0.09047541,85996.0,85992.0,0.12171507]
[1741399093364,0.09047541,85996.0,85995.0,0.1163183]
[1741399093563,0.002,85996.0,85995.0,0.1163183]
[1741399093763,0.01614554,86000.0,85999.0,0.1163129]
[1741399093953,0.00214409,86000.0,85999.0,0.4771129]
[1741399094159,0.00214409,86000.0,85999.0,0.60154853]
[1741399095062,0.00514409,86000.0,85999.0,0.60154853]
[1741399095667,0.00514409,86000.0,85999.0,0.54352572]
[1741399096064,0.00514409,86000.0,85999.0,0.56100572]
[1741399098865,0.00514409,86000.0,85999.0,0.50271563]
[1741399099169,0.00104396,86000.0,85999.0,0.50271563]
[1741399099967,0.00104396,86000.0,85999.0,0.61902853]
[1741399100167,0.00109634,86000.0,85999.0,0.25822853]
[1741399100369,0.00109634,86000.0,85999.0,0.61902853]
[1741399101667,0.00109634,86000.0,85999.0,0.56100572]
[1741399101865,0.1983,86007.0,86006.0,0.1163035]
[1741399102562,0.11881403,86007.0,86006.0,0.1163035]
[1741399102767,0.10138403,86007.0,86006.0,0.3068035]
[1741399103075,0.30348403,86007.0,86006.0,0.5058035]
[1741399104077,0.2021,86007.0,86006.0,0.99766023]
[1741399104371,0.2014,86018.0,86014.0,0.116292]
[1741399104573,0.2014,86018.0,86017.0,0.1162886]
[1741399104869,0.0581342,86032.0,86015.0,0.3953]
[1741399104870,0.09052,86032.0,86015.0,0.52635673]
[1741399105176,0.2009,86035.0,86021.0,0.3608]
[1741399105374,0.2009,86035.0,86031.0,0.1162688]
[1741399105571,0.2009,86035.0,86032.0,0.4112]
[1741399105964,0.3608,86033.0,86020.0,0.14030642]
[1741399106271,0.116273,86029.0,86020.0,0.14030642]
[1741399106471,0.116273,86029.0,86021.0,0.5672]
[1741399106671,0.3608,86033.0,86021.0,0.5672]
[1741399106672,0.0581352,86031.0,86021.0,0.5672]
[1741399106872,0.1162737,86028.0,86021.0,0.7702]
[1741399107375,0.3925,86027.0,86021.0,0.7702]
[1741399107566,0.3925,86027.0,86022.0,0.13315161]
[1741399108076,0.1945,86027.0,86026.0,0.1162764]
[1741399108266,0.002,86028.0,86027.0,0.1162751]
[1741399108468,0.002,86028.0,86027.0,0.5256751]
[1741399108774,0.1569508,86034.0,86033.0,0.116267]
[1741399109071,0.1162481,86047.0,86029.0,0.0581356]
[1741399109277,0.1162498,86046.0,86033.0,0.25036924]
[1741399109471,0.1162498,86046.0,86034.0,0.3875]
[1741399109867,0.1162498,86046.0,86035.0,0.13410294]
[1741399110073,0.1162467,86048.0,86035.0,0.26780664]
[1741399110373,0.2064,86049.0,86036.0,0.5037629]
[1741399110573,0.1162485,86047.0,86036.0,0.5037629]
[1741399110772,0.2064,86049.0,86036.0,0.85151554]
[1741399111074,0.18707119,86049.0,86039.0,0.25656442]
[1741399111274,0.18707119,86049.0,86040.0,0.3875]
[1741399111476,0.18707119,86049.0,86040.0,0.51967987]
[1741399111677,0.18707119,86049.0,86042.0,0.1162541]
[1741399111978,0.18707119,86049.0,86040.0,0.51967987]
[1741399111979,0.2018,86048.0,86040.0,0.52119987]
[1741399112283,0.1162529,86044.0,86040.0,0.3875]
[1741399112477,0.1162556,86042.0,86040.0,0.3875]
[1741399112681,0.2018,86041.0,86040.0,0.3875]
[1741399112985,0.2018,86041.0,86040.0,0.1968]
[1741399113888,0.2018,86041.0,86040.0,0.13877719]
[1741399114382,0.2018,86041.0,86036.0,0.39403456]
[1741399114584,0.3608,86037.0,86036.0,0.03323456]
[1741399114984,0.3608,86037.0,86036.0,0.15586803]
[1741399115581,0.1909,86040.0,86036.0,0.15686803]
[1741399115879,0.1983,86039.0,86036.0,0.15686803]
[1741399116075,0.1983,86039.0,86037.0,0.01744]
[1741399116275,0.2055,86038.0,86036.0,0.15686803]
[1741399116480,0.2055,86038.0,86037.0,0.01744]
[1741399116875,0.2055,86038.0,86037.0,0.08250531]
[1741399117077,0.2055,86038.0,86037.0,0.29360531]
[1741399117678,0.2055,86038.0,86037.0,0.08250531]
[1741399117881,0.2055,86038.0,86036.0,0.03323456]
[1741399117882,0.1162616,86037.0,86036.0,0.03323456]
[1741399118187,0.4770616,86037.0,86036.0,0.00117441]
[1741399118771,0.4760616,86037.0,86036.0,0.00017441]
[1741399119982,0.1162737,86028.0,86027.0,0.01744]
[1741399120587,0.1162751,86027.0,86026.0,0.23768382]
[1741399120785,0.3181751,86027.0,86026.0,0.23768382]
[1741399120974,0.31825918,86027.0,86026.0,0.23768382]
[1741399121582,0.40861918,86027.0,86026.0,0.23768382]
[1741399121777,0.29234408,86027.0,86026.0,0.23768382]
[1741399121984,0.29234408,86027.0,86026.0,0.35396022]
[1741399122287,0.40861918,86027.0,86026.0,0.23768382]
[1741399122483,0.40861918,86027.0,86026.0,0.23868382]
[1741399122888,0.40861918,86027.0,86026.0,0.18066101]
[1741399124285,0.40861918,86027.0,86026.0,0.001]
[1741399125993,0.1152778,86025.0,86024.0,0.34177719]
[1741399126685,0.20198408,86027.0,86024.0,0.34177719]
[1741399126883,0.2046,86026.0,86024.0,0.34177719]
[1741399127285,0.4018,86026.0,86024.0,0.34177719]
[1741399127788,0.1162778,86025.0,86024.0,0.34177719]
[1741399128085,0.4018,86026.0,86024.0,0.34177719]
[1741399128384,8.408e-05,86027.0,86026.0,0.1162764]
[1741399128785,8.408e-05,86027.0,86026.0,0.44731014]
[1741399128984,8.408e-05,86027.0,86026.0,0.38928733]
[1741399129788,0.00013419,86041.0,86032.0,0.1162676]
[1741399129980,0.00013419,86041.0,86034.0,0.1162656]
[1741399130383,0.00013419,86041.0,86034.0,0.65209212]
[1741399130982,0.00013419,86041.0,86034.0,0.53582652]
[1741399131778,0.00013419,86041.0,86034.0,0.65209212]
[1741399131981,0.00013419,86041.0,86034.0,0.59406931]
[1741399132191,0.00013419,86041.0,86034.0,0.59506931]
[1741399132388,0.00013419,86041.0,86034.0,0.47880371]
[1741399132593,0.1162594,86039.0,86034.0,0.47880371]
[1741399132791,0.4156,86038.0,86034.0,0.47880371]
[1741399135084,0.4156,86038.0,86034.0,0.4197809]
[1741399135283,0.4156,86038.0,86034.0,0.4207809]
[1741399136392,0.4156,86038.0,86034.0,0.4382209]
[1741399137294,0.38329457,86038.0,86034.0,0.4382209]
[1741399138094,0.38329457,86038.0,86034.0,0.38019809]
[1741399139281,0.38329457,86038.0,86034.0,0.49646329]
[1741399139485,0.17839457,86038.0,86037.0,0.1162616]
[1741399139692,0.00013419,86041.0,86040.0,0.1162575]
[1741399140596,0.3608,86054.0,86046.0,0.0581242]
[1741399140789,0.7529,86054.0,86052.0,0.1162402]
[1741399140983,0.7529,86054.0,86053.0,0.1957]
[1741399141194,0.34784288,86054.0,86053.0,0.13767719]
[1741399141493,0.1952,86058.0,86057.0,0.1162345]
[1741399142289,0.45104,86065.0,86054.0,0.0581193]
[1741399142500,0.09024,86065.0,86064.0,0.1162251]
[1741399143103,0.1952,86070.0,86066.0,0.1162217]
[1741399143397,0.16635952,86070.0,86064.0,0.53768794]
[1741399143598,0.16635952,86070.0,86067.0,0.13486298]
[1741399143794,0.16635952,86070.0,86068.0,0.1925]
[1741399144191,0.34068542,86070.0,86069.0,0.13207542]
[1741399144394,0.22446842,86070.0,86069.0,0.13207542]
[1741399144593,0.22446842,86070.0,86067.0,0.02958942]
[1741399144799,0.16635952,86070.0,86063.0,0.55542]
[1741399145000,0.1162251,86064.0,86063.0,0.5539]
[1741399145191,0.2064251,86064.0,86063.0,0.20169752]
[1741399145891,0.201,86064.0,86063.0,0.20169752]
[1741399146696,0.201,86064.0,86063.0,0.00959752]
[1741399147103,0.3172251,86064.0,86063.0,0.00959752]
[1741399147304,0.201,86064.0,86056.0,0.1973]
[1741399147893,0.201,86064.0,86056.0,0.22587762]
[1741399148098,0.201,86064.0,86056.0,0.02857762]
[1741399148099,0.259113,86064.0,86056.0,0.02857762]
[1741399148299,0.259113,86064.0,86055.0,0.14030642]
[1741399148810,0.1162283,86062.0,86055.0,0.14030642]
[1741399149000,0.1986,86061.0,86055.0,0.14030642]
[1741399149203,0.1986,86061.0,86056.0,0.001]
[1741399149701,0.1986,86061.0,86056.0,0.03043784]
[1741399150205,0.1986,86061.0,86055.0,0.12152949]
[1741399150508,0.1986,86061.0,86055.0,0.00880804]
[1741399150718,0.1986,86061.0,86054.0,0.34689098]
[1741399151105,0.1986,86061.0,86055.0,0.001]
[1741399151796,0.1986,86061.0,86056.0,0.3608]
[1741399151999,0.1986,86061.0,86055.0,0.08741851]
[1741399152000,0.1986,86061.0,86055.0,0.001]
[1741399152207,0.1986,86061.0,86057.0,0.1162339]
[1741399152403,0.1986,86061.0,86058.0,0.2049]
[1741399153306,0.1986,86061.0,86058.0,0.14687719]
[1741399153607,0.08269095,86061.0,86058.0,0.14687719]
[1741399153812,0.28056,86065.0,86058.0,0.20499359]
[1741399154613,0.28056,86065.0,86058.0,0.14687719]
[1741399155106,0.28056,86065.0,86055.0,0.14441647]
[1741399155107,0.1904,86065.0,86055.0,0.08629767]
[1741399155413,0.1904,86065.0,86058.0,0.1162327]
[1741399155607,0.1904,86065.0,86059.0,0.1162313]
[1741399155799,0.1904,86065.0,86058.0,0.1162327]
[1741399156111,0.1904,86065.0,86056.0,0.1162354]
[1741399156313,0.1904,86065.0,86057.0,0.07565119]
[1741399156609,0.1904,86065.0,86057.0,0.27555119]
[1741399156804,0.1904,86065.0,86058.0,0.34689098]
[1741399157011,0.1904,86065.0,86058.0,0.53749098]
[1741399157813,0.1904,86065.0,86059.0,0.1162317]
[1741399159308,0.1904,86065.0,86059.0,0.05820889]
[1741399160102,0.1904,86065.0,86058.0,0.53909098]
[1741399160302,0.1904,86065.0,86059.0,0.1162318]
[1741399160504,0.1904,86065.0,86062.0,0.34689098]
[1741399160811,0.4770264,86063.0,86062.0,0.34689098]
[1741399162414,0.4770264,86063.0,86062.0,0.28886817]
[1741399163108,0.6884264,86063.0,86062.0,0.28886817]
[1741399163999,0.1162324,86059.0,86057.0,0.01744]
[1741399164208,0.2098,86058.0,86057.0,0.01744]
[1741399164507,0.3260332,86058.0,86057.0,0.01744]
[1741399164809,0.1162372,86055.0,86054.0,0.00852653]
[1741399165022,0.1162386,86054.0,86053.0,0.41701656]
[1741399165206,0.3260386,86054.0,86053.0,0.41701656]
[1741399165402,0.3260386,86054.0,86053.0,0.35899375]
[1741399166806,0.4160786,86054.0,86053.0,0.35899375]
[1741399167313,0.3260386,86054.0,86053.0,0.36749288]
[1741399167512,0.4160786,86054.0,86053.0,0.00849913]
[1741399167712,0.116244,86050.0,86049.0,0.1964]
[1741399168613,0.116244,86050.0,86049.0,0.13837719]
[1741399169413,0.2098,86054.0,86049.0,0.33277719]
[1741399169614,0.2098,86054.0,86049.0,0.3415679]